fUST/lending_fUST_20250720
["ID","MTS","AMOUNT","RATE_DAILY","PERIOD"]
[373343090,1752955844347,-153.0,0.00021205,2]
[373343091,1752955844356,-153.0,0.00021205,2]
[373343092,1752955844366,-577.1515091,0.00021205,2]
[373343093,1752955844374,-319.625017,0.00021205,2]
[373343094,1752955844384,-153.0,0.00021205,2]
[373343095,1752955844393,-159.8125085,0.00021205,2]
[373343097,1752955844403,-153.0,0.00021205,2]
[373343099,1752955844412,-153.0,0.00021205,2]
[373343101,1752955844423,-153.0,0.00021205,2]
[373343103,1752955844433,-383.0,0.00021323,2]
[373343105,1752955844442,-383.0,0.00021326,2]
[373343107,1752955844451,-151.0,0.00021348,2]
[373343109,1752955844461,-151.0,0.00021348,2]
[373343111,1752955844470,-151.0,0.00021348,2]
[373343113,1752955844480,-151.0,0.00021348,2]
[373343115,1752955844489,-151.0,0.00021348,2]
[373343117,1752955844499,-8471.07743909,0.00021348,5]
[373343119,1752955844508,-383.0,0.00021356,2]
[373343121,1752955844518,-592.83,0.00021363,2]
[373343123,1752955844527,-1625.9,0.00021363,2]
[373343125,1752955844537,-460.0,0.00021364,2]
[373343127,1752955844550,-1233.84,0.00021364,2]
[373343129,1752955844560,-460.0,0.00021364,2]
[373343131,1752955844570,-1107.54,0.00021364,2]
[373343133,1752955844580,-460.0,0.00021364,2]
[373343135,1752955844590,-748.13,0.00021364,2]
[373343137,1752955844600,-475.05,0.00021364,2]
[373343140,1752955844610,-460.0,0.00021364,2]
[373343142,1752955844620,-151.0,0.00021365,2]
[373343143,1752955844630,-151.0,0.00021365,2]
[373343146,1752955844640,-1104.99,0.00021365,2]
[373343148,1752955844650,-460.0,0.00021365,2]
[373343149,1752955844660,-874.76,0.00021365,2]
[373343152,1752955844670,-460.0,0.00021365,2]
[373343154,1752955844680,-460.0,0.00021365,2]
[373343156,1752955844690,-981.74765151,0.00021366,2]
[373343158,1752955844700,-151.0,0.00021366,2]
[373343160,1752955844710,-151.0,0.00021366,2]
[373343162,1752955844720,-151.0,0.00021366,2]
[373343164,1752955844729,-865.23,0.00021478,2]
[373343166,1752955844739,-613.95,0.00021478,2]
[373343168,1752955844750,-460.0,0.00021478,2]
[373343170,1752955844759,-307.9988728,0.00021479,2]
[373343172,1752955844769,-1000.0,0.0002149,2]
[373343174,1752955844778,-1000.0,0.0002149,2]
[373343176,1752955844789,-1000.0,0.0002149,2]
[373343178,1752955844799,-1000.0,0.0002149,2]
[373343180,1752955844809,-507.40545846,0.0002149,2]
[373343182,1752955844819,-151.0,0.00021498,2]
[373343184,1752955844829,-484.0,0.00021498,2]
[373343186,1752955844839,-151.17869458,0.00021498,2]
[373343188,1752955844848,-151.0,0.00021498,2]
[373343190,1752955844858,-151.0,0.00021498,2]
[373343192,1752955844868,-572.0,0.00021498,2]
[373343194,1752955844877,-151.0,0.00021498,2]
[373343196,1752955844887,-151.0,0.00021498,2]
[373343198,1752955844897,-247.18468876,0.00021498,2]
[373343200,1752955844907,-151.0,0.00021498,2]
[373343202,1752955844916,-5831.97447001,0.000215,2]
[373343204,1752955844925,-323.35842337,0.000215,2]
[373343206,1752955844935,-324.0,0.000215,2]
[373343208,1752955844944,-324.0,0.000215,2]
[373343210,1752955844954,-1081.53922489,0.00021505,2]
[373343212,1752955844963,-215.175957,0.00021507,2]
[373343214,1752955844973,-151.0,0.00021511,2]
[373343216,1752955844982,-151.0,0.00021511,2]
[373343218,1752955844991,-151.0,0.00021511,2]
[373343220,1752955845003,-333.772377,0.00021511,2]
[373343222,1752955845012,-333.772377,0.00021511,2]
[373343224,1752955845021,-151.0,0.00021511,2]
[373343226,1752955845031,-460.0,0.00021511,2]
[373343228,1752955845040,-151.0,0.00021511,2]
[373343231,1752955845052,-151.0,0.00021511,2]
[373343233,1752955845065,-151.0,0.00021512,2]
[373343235,1752955845074,-151.0,0.00021512,2]
[373343237,1752955845084,-836.0,0.0002153,2]
[373343239,1752955845093,-151.0,0.00021534,2]
[373343241,1752955845104,-151.0,0.00021534,2]
[373343243,1752955845113,-151.0,0.00021538,2]
[373343245,1752955845123,-151.0,0.00021555,2]
[373343247,1752955845132,-1105.184741,0.00021555,2]
[373343249,1752955845142,-1105.184741,0.00021555,2]
[373343251,1752955845151,-151.0,0.00021555,2]
[373343253,1752955845160,-151.0,0.00021555,2]
[373343255,1752955845170,-151.0,0.00021555,2]
[373343257,1752955845179,-151.0,0.00021555,2]
[373343259,1752955845188,-8471.07743909,0.00021555,5]
[373343261,1752955845197,-336.41125171,0.00021557,2]
[373343263,1752955845207,-460.0,0.00021561,2]
[373343265,1752955845216,-500.0,0.00021572,2]
[373343266,1752955845225,-500.0,0.00021572,2]
[373343269,1752955845235,-500.0,0.00021572,2]
[373343270,1752955845244,-300.0,0.00021572,2]
[373343272,1752955845254,-500.0,0.00021572,2]
[373343274,1752955845264,-500.0,0.00021572,2]
[373343277,1752955845274,-500.0,0.00021572,2]
[373343279,1752955845283,-383.0,0.00021609,2]
[373343281,1752955845293,-700.0,0.00021612,2]
[373343283,1752955845303,-500.0,0.00021616,2]
[373343285,1752955845312,-571.33485352,0.00021616,2]
[373343287,1752955845322,-151.0,0.00021616,2]
[373343289,1752955845331,-151.0,0.00021616,2]
[373343291,1752955845341,-151.0,0.00021618,2]
[373343293,1752955845350,-836.0,0.00021618,2]
[373343295,1752955845359,-152.423653,0.00021625,4]
[373343297,1752955845369,-836.0,0.00021627,2]
[373343299,1752955845378,-214.52603969,0.00021635,10]
[373343301,1752955845388,-592.83,0.00021637,2]
[373343303,1752955845397,-1625.9,0.00021637,2]
[373343305,1752955845407,-383.0,0.00021637,2]
[373343307,1752955845416,-151.0,0.00021638,2]
[373343309,1752955845425,-460.0,0.00021638,2]
[373343311,1752955845434,-1233.84,0.00021638,2]
[373343313,1752955845443,-460.0,0.00021638,2]
[373343315,1752955845453,-1107.54,0.00021638,2]
[373343317,1752955845462,-460.0,0.00021638,2]
[373343319,1752955845471,-748.13,0.00021638,2]
[373343321,1752955845480,-475.05,0.00021638,2]
[373343323,1752955845490,-460.0,0.00021638,2]
[373343325,1752955845499,-1104.99,0.00021639,2]
[373343327,1752955845508,-460.0,0.00021639,2]
[373343329,1752955845518,-874.76,0.00021639,2]
[373343331,1752955845528,-460.0,0.00021639,2]
[373343333,1752955845538,-460.0,0.00021639,2]
[373343335,1752955845549,-151.0,0.0002164,2]
[373343337,1752955845558,-154.60703084,0.0002164,2]
[373343339,1752955845568,-151.0,0.00021643,2]
[373343341,1752955845577,-268.466191,0.00021643,2]
[373343343,1752955845586,-356.2230728,0.00021644,2]
[373343345,1752955845596,-311.226723,0.00021644,2]
[373343347,1752955845607,-311.226723,0.00021644,2]
[373343349,1752955845617,-151.0,0.00021645,2]
[373343351,1752955845627,-10220.1324987,0.00021647,2]
[373343353,1752955845637,-151.0,0.00021648,2]
[373343355,1752955845647,-159.8125085,0.00021671,2]
[373343358,1752955845661,-159.8125085,0.00021671,2]
[373343360,1752955845671,-159.8125085,0.00021671,2]
[373343362,1752955845680,-159.8125085,0.00021671,2]
[373343363,1752955845690,-159.8125085,0.00021671,2]
[373343366,1752955845700,-159.8125085,0.00021671,2]
[373343368,1752955845709,-159.8125085,0.00021671,2]
[373343370,1752955845720,-836.0,0.00021682,2]
[373343372,1752955845730,-383.0,0.00021689,2]
[373343374,1752955845740,-504.22089586,0.0002169,2]
[373343376,1752955845749,-500.0,0.0002169,2]
[373343378,1752955845759,-152.423653,0.00021698,3]
[373343380,1752955845769,-836.0,0.00021706,2]
[373343382,1752955845779,-836.0,0.00021708,2]
[373343384,1752955845789,-500.0,0.00021746,2]
[373343386,1752955845800,-865.23,0.00021752,2]
[373343388,1752955845809,-613.95,0.00021752,2]
[373343390,1752955845819,-460.0,0.00021752,2]
[373343392,1752955845829,-151.0,0.00021762,2]
[373343394,1752955845839,-272.910868,0.00021762,2]
[373343396,1752955845849,-151.0,0.00021762,2]
[373343398,1752955845858,-151.0,0.00021762,2]
[373343400,1752955845867,-8471.07743909,0.00021762,5]
[373343402,1752955845877,-151.0,0.00021769,2]
[373343404,1752955845887,-151.0,0.00021769,2]
[373343406,1752955845898,-198.0,0.00021772,2]
[373343408,1752955845907,-484.0,0.00021772,2]
[373343411,1752955845925,-151.0,0.00021772,2]
[373343413,1752955845938,-151.0,0.00021772,2]
[373343416,1752955845948,-572.0,0.00021772,2]
[373343418,1752955845958,-198.0,0.00021772,2]
[373343421,1752955845967,-151.0,0.00021772,2]
[373343425,1752955845977,-151.0,0.00021811,2]
[373343428,1752955845987,-1000.0,0.00021814,2]
[373343430,1752955845997,-151.0,0.00021814,2]
[373343433,1752955846006,-151.0,0.00021814,2]
[373343436,1752955846016,-151.0,0.00021814,2]
[373343439,1752955846027,-836.0,0.00021842,2]
[373343441,1752955846037,-151.0,0.00021842,2]
[373343443,1752955846048,-151.0,0.00021842,2]
[373343445,1752955846066,-836.0,0.00021865,2]
[373343447,1752955846077,-159.8125085,0.0002189,2]
[373343449,1752955846087,-160.0,0.00021891,3]
[373343451,1752955846098,-592.83,0.00021911,2]
[373343453,1752955846108,-1625.9,0.00021911,2]
[373343456,1752955846117,-460.0,0.00021912,2]
[373343458,1752955846127,-1233.84,0.00021912,2]
[373343460,1752955846138,-460.0,0.00021912,2]
[373343462,1752955846147,-1107.54,0.00021912,2]
[373343464,1752955846158,-460.0,0.00021912,2]
[373343466,1752955846168,-748.13,0.00021912,2]
[373343468,1752955846178,-475.05,0.00021912,2]
[373343470,1752955846187,-460.0,0.00021912,2]
[373343472,1752955846197,-151.0,0.00021913,2]
[373343474,1752955846207,-151.0,0.00021913,2]
[373343476,1752955846217,-333.772377,0.00021913,2]
[373343478,1752955846227,-333.772377,0.00021913,2]
[373343480,1752955846237,-151.0,0.00021913,2]
[373343482,1752955846247,-151.0,0.00021913,2]
[373343485,1752955846257,-1104.99,0.00021913,2]
[373343487,1752955846275,-151.0,0.00021913,2]
[373343489,1752955846288,-460.0,0.00021913,2]
[373343490,1752955846298,-874.76,0.00021913,2]
[373343493,1752955846307,-460.0,0.00021913,2]
[373343495,1752955846317,-460.0,0.00021913,2]
[373343497,1752955846326,-268.466191,0.00021917,2]
[373343499,1752955846337,-151.0,0.00021917,2]
[373343501,1752955846347,-537.66,0.00021917,2]
[373343503,1752955846357,-537.66,0.00021917,2]
[373343505,1752955846367,-537.66,0.00021917,2]
[373343507,1752955846377,-537.66,0.00021917,2]
[373343509,1752955846387,-537.66,0.00021917,2]
[373343511,1752955846397,-537.66,0.00021917,2]
[373343513,1752955846407,-537.66,0.00021917,2]
[373343515,1752955846416,-537.66,0.00021917,2]
[373343517,1752955846426,-537.66,0.00021917,2]
[373343519,1752955846436,-537.66,0.00021917,2]
[373343521,1752955846445,-537.66,0.00021917,2]
[373343524,1752955846455,-537.66,0.00021917,2]
[373343525,1752955846465,-500.0,0.00021917,2]
[373343528,1752955846475,-500.0,0.00021917,2]
[373343530,1752955846485,-500.0,0.00021917,2]
[373343532,1752955846495,-500.0,0.00021917,2]
[373343534,1752955846504,-500.0,0.00021917,2]
[373343536,1752955846515,-500.0,0.00021917,2]
[373343538,1752955846525,-500.0,0.00021917,2]
[373343540,1752955846534,-500.0,0.00021917,2]
[373343542,1752955846543,-500.0,0.00021917,2]
[373343544,1752955846554,-500.0,0.00021917,2]
[373343546,1752955846564,-500.0,0.00021917,2]
[373343548,1752955846574,-500.0,0.00021917,2]
[373343550,1752955846584,-151.0,0.00021917,2]
[373343552,1752955846593,-151.0,0.00021917,2]
[373343554,1752955846603,-151.0,0.00021917,2]
[373343556,1752955846613,-226.665178,0.00021917,2]
[373343558,1752955846622,-153.0,0.00021918,2]
[373343560,1752955846632,-153.0,0.00021918,2]
[373343562,1752955846641,-153.0,0.00021918,2]
[373343564,1752955846651,-153.0,0.00021918,2]
[373343566,1752955846660,-153.0,0.00021918,2]
[373343568,1752955846670,-153.0,0.00021918,2]
[373343570,1752955846679,-153.0,0.00021918,2]
[373343572,1752955846689,-153.0,0.00021918,2]
[373343574,1752955846700,-153.0,0.00021918,2]
[373343576,1752955846710,-153.0,0.00021918,2]
[373343578,1752955846720,-153.0,0.00021918,2]
[373343581,1752955846730,-153.0,0.00021918,2]
[373343583,1752955846739,-153.0,0.00021918,2]
[373343585,1752955846749,-153.0,0.00021918,2]
[373343587,1752955846758,-153.0,0.00021918,2]
[373343589,1752955846767,-153.0,0.00021918,2]
[373343591,1752955846777,-153.0,0.00021918,2]
[373343593,1752955846787,-153.0,0.00021918,2]
[373343595,1752955846796,-153.0,0.00021918,2]
[373343597,1752955846806,-153.0,0.00021918,2]
[373343599,1752955846816,-153.0,0.00021918,2]
[373343600,1752955846825,-153.0,0.00021918,2]
[373343602,1752955846835,-153.0,0.00021918,2]
[373343605,1752955846849,-153.0,0.00021918,2]
[373343607,1752955846858,-153.0,0.00021918,2]
[373343609,1752955846867,-153.0,0.00021918,2]
[373343611,1752955846877,-153.0,0.00021918,2]
[373343613,1752955846886,-153.0,0.00021918,2]
[373343615,1752955846897,-153.0,0.00021918,2]
[373343617,1752955846906,-153.0,0.00021918,2]
[373343619,1752955846916,-153.0,0.00021918,2]
[373343621,1752955846926,-153.0,0.00021918,2]
[373343623,1752955846935,-153.0,0.00021918,2]
[373343625,1752955846945,-153.0,0.00021918,2]
[373343626,1752955846955,-153.0,0.00021918,2]
[373343628,1752955846964,-153.0,0.00021918,2]
[373343630,1752955846974,-153.0,0.00021918,2]
[373343632,1752955846983,-153.0,0.00021918,2]
[373343635,1752955846993,-153.0,0.00021918,2]
[373343637,1752955847006,-153.0,0.00021918,2]
[373343639,1752955847016,-153.0,0.00021918,2]
[373343641,1752955847025,-153.0,0.00021918,2]
[373343643,1752955847035,-153.0,0.00021918,2]
[373343645,1752955847044,-153.0,0.00021918,2]
[373343647,1752955847057,-153.0,0.00021918,2]
[373343649,1752955847066,-153.0,0.00021918,2]
[373343651,1752955847076,-153.0,0.00021918,2]
[373343653,1752955847086,-153.0,0.00021918,2]
[373343655,1752955847095,-153.0,0.00021918,2]
[373343657,1752955847106,-153.0,0.00021918,2]
[373343659,1752955847115,-153.0,0.00021918,2]
[373343661,1752955847125,-153.0,0.00021918,2]
[373343663,1752955847136,-153.0,0.00021918,2]
[373343665,1752955847146,-153.0,0.00021918,2]
[373343667,1752955847155,-153.0,0.00021918,2]
[373343669,1752955847165,-153.0,0.00021918,2]
[373343671,1752955847174,-153.0,0.00021918,2]
[373343673,1752955847184,-153.0,0.00021918,2]
[373343675,1752955847194,-153.0,0.00021918,2]
[373343677,1752955847203,-153.0,0.00021918,2]
[373343679,1752955847212,-153.0,0.00021918,2]
[373343681,1752955847222,-153.0,0.00021918,2]
[373343683,1752955847231,-153.0,0.00021918,2]
[373343685,1752955847241,-153.0,0.00021918,2]
[373343703,1752955847398,-153.0,0.00021918,2]
[373343705,1752955847408,-153.0,0.00021918,2]
[373343707,1752955847418,-153.0,0.00021918,2]
[373343709,1752955847427,-153.0,0.00021918,2]
[373343711,1752955847436,-153.0,0.00021918,2]
[373343713,1752955847445,-153.0,0.00021918,2]
[373343715,1752955847455,-153.0,0.00021918,2]
[373343717,1752955847464,-153.0,0.00021918,2]
[373343719,1752955847473,-153.0,0.00021918,2]
[373343721,1752955847483,-153.0,0.00021918,2]
[373343723,1752955847492,-153.0,0.00021918,2]
[373343725,1752955847502,-153.0,0.00021918,2]
[373343727,1752955847512,-153.0,0.00021918,2]
[373343729,1752955847521,-153.0,0.00021918,2]
[373343731,1752955847530,-153.0,0.00021918,2]
[373343733,1752955847539,-153.0,0.00021918,2]
[373343735,1752955847550,-153.0,0.00021918,2]
[373343737,1752955847559,-153.0,0.00021918,2]
[373343739,1752955847569,-153.0,0.00021918,2]
[373343741,1752955847578,-153.0,0.00021918,2]
[373343743,1752955847587,-153.0,0.00021918,2]
[373343745,1752955847596,-153.0,0.00021918,2]
[373343747,1752955847606,-153.0,0.00021918,2]
[373343749,1752955847615,-153.0,0.00021918,2]
[373343751,1752955847624,-153.0,0.00021918,2]
[373343753,1752955847634,-153.0,0.00021918,2]
[373343755,1752955847643,-153.0,0.00021918,2]
[373343757,1752955847652,-153.0,0.00021918,2]
[373343759,1752955847662,-153.0,0.00021918,2]
[373343761,1752955847672,-153.0,0.00021918,2]
[373343763,1752955847681,-153.0,0.00021918,2]
[373343765,1752955847691,-153.0,0.00021918,2]
[373343767,1752955847700,-153.0,0.00021918,2]
[373343769,1752955847709,-153.0,0.00021918,2]
[373343771,1752955847718,-153.0,0.00021918,2]
[373343773,1752955847728,-153.0,0.00021918,2]
[373343775,1752955847737,-153.0,0.00021918,2]
[373343777,1752955847746,-153.0,0.00021918,2]
[373343779,1752955847755,-153.0,0.00021918,2]
[373343780,1752955847765,-153.0,0.00021918,2]
[373343782,1752955847774,-153.0,0.00021918,2]
[373343785,1752955847785,-153.0,0.00021918,2]
[373343787,1752955847794,-153.0,0.00021918,2]
[373343789,1752955847805,-153.0,0.00021918,2]
[373343791,1752955847815,-153.0,0.00021918,2]
[373343793,1752955847825,-151.0,0.00021918,2]
[373343795,1752955847834,-151.0,0.00021918,2]
[373343797,1752955847843,-151.0,0.00021918,2]
[373343799,1752955847853,-238.210998,0.00021918,2]
[373343801,1752955847863,-151.0,0.00021918,2]
[373343803,1752955847872,-151.0,0.00021918,2]
[373343805,1752955847882,-151.0,0.00021918,2]
[373343807,1752955847891,-151.0,0.00021918,2]
[373343809,1752955847901,-151.0,0.00021918,2]
[373343811,1752955847911,-151.0,0.00021918,2]
[373343813,1752955847921,-151.0,0.00021918,2]
[373343815,1752955847931,-151.0,0.00021918,2]
[373343817,1752955847940,-151.0,0.00021918,2]
[373343819,1752955847950,-151.0,0.00021918,2]
[373343821,1752955847959,-211.825156,0.00021918,2]
[373343823,1752955847969,-152.0,0.00021918,2]
[373343825,1752955847979,-152.0,0.00021918,2]
[373343827,1752955847989,-152.0,0.00021918,2]
[373343829,1752955847998,-238.86695295,0.00021918,2]
[373343831,1752955848008,-150.0,0.00021918,2]
[373343833,1752955848018,-152.0,0.00021918,2]
[373343835,1752955848027,-152.0,0.00021918,2]
[373343837,1752955848037,-152.0,0.00021918,2]
[373343839,1752955848046,-150.0,0.00021918,2]
[373343841,1752955848059,-200.0,0.00021918,2]
[373343843,1752955848069,-151.0,0.00021918,7]
[373343845,1752955848079,-151.0,0.00021918,7]
[373343847,1752955848088,-311.226723,0.00021918,7]
[373343849,1752955848100,-311.226723,0.00021918,7]
[373343851,1752955848109,-151.0,0.00021918,7]
[373343853,1752955848119,-259.036827,0.00021918,7]
[373343855,1752955848129,-259.036827,0.00021918,7]
[373343857,1752955848139,-151.0,0.00021918,7]
[373343859,1752955848148,-1105.184741,0.00021918,7]
[373343861,1752955848158,-1105.184741,0.00021918,7]
[373343863,1752955848168,-223.0315306,0.00021957,2]
[373343865,1752955848178,-8471.07743909,0.00021969,6]
[373343867,1752955848188,-151.0,0.00021969,7]
[373343869,1752955848198,-151.0,0.00021969,7]
[373343871,1752955848207,-151.0,0.00021969,7]
[373343873,1752955848217,-407.28226249,0.00021973,2]
[373343875,1752955848227,-500.0,0.00021973,2]
[373343877,1752955848237,-500.0,0.00021973,2]
[373343879,1752955848246,-278.78295819,0.00021982,2]
[373343881,1752955848257,-836.0,0.0002199,2]
[373343883,1752955848266,-1857.03,0.00022,7]
[373343885,1752955848276,-151.0,0.00022,7]
[373343887,1752955848285,-151.0,0.00022,7]
[373343889,1752955848295,-311.226723,0.00022,7]
[373343891,1752955848305,-311.226723,0.00022,7]
[373343893,1752955848315,-268.466191,0.00022,7]
[373343895,1752955848324,-214.52603969,0.00022,7]
[373343897,1752955848334,-151.0,0.00022,7]
[373343899,1752955848343,-151.0,0.00022,7]
[373343901,1752955848353,-151.0,0.00022,7]
[373343903,1752955848363,-151.0,0.00022,7]
[373343905,1752955848372,-151.0,0.00022,7]
[373343907,1752955848382,-151.0,0.00022,7]
[373343909,1752955848391,-151.0,0.00022,7]
[373343911,1752955848401,-333.772377,0.00022,7]
[373343912,1752955848411,-333.772377,0.00022,7]
[373343913,1752955848420,-219.304452,0.00022,7]
[373343914,1752955848430,-168.0,0.00022,2]
[373343915,1752955848441,-151.0,0.00022,7]
[373343916,1752955848451,-151.0,0.00022,7]
[373343917,1752955848461,-168.0,0.00022,2]
[373343918,1752955848471,-155.07746113,0.00022002,2]
[373343919,1752955848481,-865.23,0.00022026,2]
[373343920,1752955848490,-613.95,0.00022026,2]
[373343921,1752955848499,-460.0,0.00022026,2]
[373343922,1752955848509,-153.0,0.00022027,2]
[373343923,1752955848519,-153.0,0.00022027,2]
[373343924,1752955848529,-153.0,0.00022027,2]
[373343925,1752955848539,-153.0,0.00022027,2]
[373343926,1752955848549,-1004.31142319,0.00022038,2]
[373343927,1752955848559,-484.0,0.00022046,2]
[373343928,1752955848568,-198.0,0.00022046,2]
[373343929,1752955848578,-151.0,0.00022046,2]
[373343930,1752955848588,-572.0,0.00022046,2]
[373343931,1752955848598,-151.0,0.00022046,2]
[373343932,1752955848608,-836.0,0.00022071,2]
[373343933,1752955848618,-151.0,0.00022085,7]
[373343934,1752955848628,-151.0,0.00022108,7]
[373343935,1752955848638,-151.0,0.00022108,7]
[373343937,1752955848648,-151.0,0.00022108,7]
[373343938,1752955848658,-560.0,0.00022108,2]
[373343940,1752955848667,-174.63255657,0.0002212,2]
[373343942,1752955848678,-1000.0,0.0002212,2]
[373343944,1752955848689,-1000.0,0.0002212,2]
[373343946,1752955848699,-1000.0,0.0002212,2]
[373343948,1752955848709,-1000.0,0.0002212,2]
[373343950,1752955848719,-836.0,0.0002216,2]
[373343952,1752955848728,-1000.0,0.00022164,2]
[373343954,1752955848738,-8471.07743909,0.00022176,6]
[373343956,1752955848748,-268.466191,0.00022176,7]
[373343958,1752955848757,-151.0,0.00022176,7]
[373343960,1752955848767,-259.036827,0.00022176,7]
[373343962,1752955848777,-259.036827,0.00022176,7]
[373343964,1752955848786,-151.0,0.00022176,7]
[373343966,1752955848796,-1105.184741,0.00022176,7]
[373343968,1752955848806,-1105.184741,0.00022176,7]
[373343970,1752955848816,-151.0,0.00022176,7]
[373343972,1752955848826,-151.0,0.00022176,7]
[373343974,1752955848835,-151.0,0.00022176,7]
[373343976,1752955848846,-151.0,0.00022176,7]
[373343978,1752955848856,-500.0,0.00022185,2]
[373343980,1752955848866,-592.83,0.00022185,2]
[373343982,1752955848878,-1625.9,0.00022185,2]
[373343984,1752955848888,-460.0,0.00022186,2]
[373343986,1752955848899,-1233.84,0.00022186,2]
[373343988,1752955848909,-460.0,0.00022186,2]
[373343990,1752955848919,-1107.54,0.00022186,2]
[373343992,1752955848929,-460.0,0.00022186,2]
[373343994,1752955848939,-748.13,0.00022186,2]
[373343996,1752955848949,-475.05,0.00022186,2]
[373343998,1752955848959,-460.0,0.00022186,2]
[373344000,1752955848971,-537.66,0.00022187,2]
[373344003,1752955848982,-1104.99,0.00022187,2]
[373344004,1752955848992,-460.0,0.00022187,2]
[373344006,1752955849002,-874.76,0.00022187,2]
[373344008,1752955849011,-460.0,0.00022187,2]
[373344011,1752955849021,-460.0,0.00022187,2]
[373344012,1752955849031,-168.0,0.00022192,7]
[373344014,1752955849041,-501.0,0.00022222,2]
[373344017,1752955849052,-152.423653,0.0002223,2]
[373344019,1752955849063,-152.423653,0.00022245,6]
[373344021,1752955849073,-152.423653,0.0002225,4]
[373344022,1752955849082,-11026.87180869,0.000223,2]
[373344025,1752955849092,-151.0,0.000223,7]
[373344027,1752955849103,-151.0,0.000223,7]
[373344029,1752955849112,-151.0,0.000223,7]
[373344030,1752955849122,-151.0,0.000223,7]
[373344032,1752955849132,-289.654597,0.000223,7]
[373344034,1752955849143,-151.0,0.000223,7]
[373344036,1752955849154,-151.0,0.000223,7]
[373344039,1752955849164,-209.968262,0.000223,7]
[373344040,1752955849174,-333.772377,0.000223,7]
[373344042,1752955849184,-333.772377,0.000223,7]
[373344044,1752955849194,-865.23,0.000223,2]
[373344047,1752955849204,-613.95,0.000223,2]
[373344048,1752955849214,-151.0,0.000223,7]
[373344050,1752955849224,-460.0,0.000223,2]
[373344052,1752955849234,-152.0,0.00022303,3]
[373344054,1752955849243,-152.0,0.00022303,3]
[373344056,1752955849253,-152.0,0.00022303,3]
[373344059,1752955849263,-152.0,0.00022303,3]
[373344061,1752955849273,-151.0,0.00022317,7]
[373344063,1752955849283,-311.226723,0.00022318,7]
[373344065,1752955849292,-311.226723,0.00022318,7]
[373344067,1752955849303,-484.0,0.0002232,2]
[373344069,1752955849312,-220.44796763,0.0002232,2]
[373344071,1752955849322,-572.0,0.0002232,2]
[373344073,1752955849332,-151.0,0.0002232,2]
[373344075,1752955849342,-8471.07743909,0.00022383,7]
[373344077,1752955849352,-151.0,0.00022406,7]
[373344079,1752955849361,-1081.53922489,0.00022448,2]
[373344081,1752955849370,-500.0,0.00022459,2]
[373344083,1752955849380,-592.83,0.00022459,2]
[373344085,1752955849390,-1625.9,0.00022459,2]
[373344087,1752955849399,-460.0,0.0002246,2]
[373344089,1752955849408,-1233.84,0.0002246,2]
[373344091,1752955849418,-1107.54,0.0002246,2]